fUST/lending_fUST_20250818
["ID","MTS","AMOUNT","RATE_DAILY","PERIOD"]
[380025149,1755483045337,-480.0,0.00022089,2]
[380025150,1755483045346,-242.47,0.000221,2]
[380025151,1755483045355,-166.57,0.00022119,2]
[380025152,1755483045365,-151.0,0.0002212,4]
[380025153,1755483045374,-587.62,0.00022191,2]
[380025154,1755483045383,-196.0,0.00022192,7]
[380025155,1755483045393,-384.98300089,0.000222,69]
[380025156,1755483045402,-384.98300087,0.000222,69]
[380025157,1755483045411,-2000.0,0.00022235,2]
[380025158,1755483045422,-943.557,0.00022264,2]
[380025159,1755483045431,-179.625,0.00022264,2]
[380025161,1755483045441,-480.0,0.00022363,2]
[380025162,1755483045450,-9957.54174486,0.00022394,2]
[380025164,1755483045459,-587.62,0.00022465,2]
[380025165,1755483045470,-733.04,0.0002247,3]
[380025167,1755483045479,-366.52,0.0002247,3]
[380025169,1755483045488,-500.0,0.00022548,2]
[380025171,1755483045498,-720.0,0.00022555,20]
[380025173,1755483045507,-17842.522448,0.00022567,2]
[380025175,1755483045516,-151.0,0.00022567,2]
[380025177,1755483045526,-587.0,0.00022573,2]
[380025179,1755483045535,-709.38865674,0.00022608,2]
[380025181,1755483045544,-1400.0,0.00022616,2]
[380025183,1755483045554,-560.0,0.00022631,2]
[380025185,1755483045563,-480.0,0.00022637,2]
[380025187,1755483045572,-151.0,0.00022663,4]
[380025189,1755483045581,-3641.93147767,0.00022678,2]
[380025191,1755483045592,-1000.0,0.00022708,5]
[380025193,1755483045602,-587.62,0.00022739,2]
[380025195,1755483045612,-1504.98720556,0.00022783,2]
[380025197,1755483045628,-1000.0,0.000228,7]
[380025199,1755483045647,-9957.54174486,0.00022809,2]
[380025201,1755483045660,-160.0,0.00022844,3]
[380025203,1755483045672,-1646.45168016,0.0002289,2]
[380025205,1755483045683,-480.0,0.00022911,2]
[380025207,1755483045695,-160.0,0.00023,2]
[380025209,1755483045705,-3805.44,0.00023,7]
[380025211,1755483045715,-11937.22,0.00023,7]
[380025213,1755483045725,-587.62,0.00023013,2]
[380025215,1755483045734,-196.0,0.00023014,7]
[380025216,1755483045744,-384.98300087,0.00023062,73]
[380025218,1755483045754,-388.3,0.00023078,2]
[380025220,1755483045764,-660.0,0.00023179,2]
[380025223,1755483045777,-480.0,0.00023185,2]
[380025224,1755483045787,-152.42,0.000232,7]
[380025226,1755483045797,-151.0,0.00023205,5]
[380025228,1755483045807,-9957.54174486,0.00023225,2]
[380025230,1755483045817,-587.62,0.00023287,2]
[380025232,1755483045826,-151.0,0.000233,9]
[380025234,1755483045835,-151.0,0.000233,5]
[380025236,1755483045844,-480.0,0.00023459,2]
[380025238,1755483045854,-160.0,0.00023472,4]
[380025240,1755483045863,-645.0,0.000235,2]
[380025242,1755483045873,-587.62,0.00023561,2]
[380025244,1755483045882,-9957.54174486,0.00023641,2]
[380025246,1755483045891,-264.05986,0.00023656,2]
[380025248,1755483045901,-500.0,0.00023675,2]
[380025250,1755483045910,-151.0,0.000237,9]
[380025252,1755483045919,-151.0,0.000237,7]
[380025254,1755483045929,-1400.0,0.00023712,2]
[380025256,1755483045938,-760.0,0.00023727,2]
[380025258,1755483045948,-480.0,0.00023733,2]
[380025260,1755483045957,-151.0,0.00023747,5]
[380025262,1755483045966,-1646.45168016,0.0002379,2]
[380025264,1755483045976,-1000.0,0.000238,10]
[380025266,1755483045985,-150.0,0.00023807,2]
[380025268,1755483045994,-150.0,0.00023807,2]
[380025270,1755483046003,-150.0,0.00023807,2]
[380025272,1755483046013,-972.0,0.00023807,2]
[380025274,1755483046022,-2153.0,0.00023807,2]
[380025276,1755483046034,-637.0,0.00023807,2]
[380025279,1755483046044,-317.343,0.00023807,2]
[380025281,1755483046053,-408.0,0.00023807,2]
[380025283,1755483046062,-587.62,0.00023835,2]
[380025285,1755483046072,-500.85337114,0.00023847,9]
[380025287,1755483046081,-500.0,0.00023847,9]
[380025291,1755483046092,-1554.270924,0.0002388,5]
[380025294,1755483046102,-1000.0,0.000239,5]
[380025297,1755483046112,-1000.0,0.0002392,5]
[380025300,1755483046121,-1375.5528983,0.00023936,2]
[380025303,1755483046131,-151.0,0.00023936,2]
[380025306,1755483046142,-1000.0,0.0002394,5]
[380025309,1755483046151,-1000.0,0.0002396,5]
[380025312,1755483046161,-439.0555677,0.00023973,2]
[380025315,1755483046170,-431.9864578,0.00023973,2]
[380025318,1755483046179,-431.9864578,0.00023973,2]
[380025321,1755483046189,-431.9864578,0.00023973,2]
[380025324,1755483046199,-1000.0,0.0002398,5]
[380025327,1755483046208,-151.86983326,0.0002399,2]
[380025330,1755483046218,-1000.0,0.00024,5]
[380025333,1755483046227,-528.58062739,0.00024,7]
[380025336,1755483046237,-528.58062739,0.00024,10]
[380025339,1755483046247,-160.0,0.00024,7]
[380025342,1755483046261,-160.0,0.00024,10]
[380025344,1755483046270,-232.18122251,0.00024,7]
[380025346,1755483046283,-232.18122251,0.00024,10]
[380025348,1755483046292,-843.81736472,0.00024,7]
[380025350,1755483046301,-843.81736472,0.00024,10]
[380025352,1755483046310,-160.0,0.00024,7]
[380025354,1755483046320,-160.0,0.00024,10]
[380025356,1755483046329,-160.0,0.00024,7]
[380025358,1755483046339,-151.0,0.00024,7]
[380025360,1755483046348,-216.85420361,0.00024,7]
[380025362,1755483046357,-216.85420361,0.00024,10]
[380025364,1755483046366,-214.0,0.00024,9]
[380025366,1755483046375,-160.0,0.00024,7]
[380025368,1755483046385,-160.0,0.00024,10]
[380025370,1755483046394,-480.0,0.00024007,2]
[380025372,1755483046403,-1000.0,0.0002402,5]
[380025374,1755483046413,-1583.63534128,0.00024029,2]
[380025376,1755483046423,-1000.0,0.0002404,5]
[380025378,1755483046432,-9957.54174486,0.00024056,2]
[380025380,1755483046441,-1000.0,0.0002406,5]
[380025382,1755483046450,-1000.0,0.0002408,5]
[380025384,1755483046459,-151.0,0.000241,10]
[380025386,1755483046468,-1000.0,0.000241,5]
[380025387,1755483046481,-151.0,0.000241,9]
[380025389,1755483046497,-3805.44,0.000241,7]
[380025391,1755483046507,-11937.22,0.000241,7]
[380025393,1755483046516,-160.0,0.00024101,5]
[380025395,1755483046529,-587.62,0.00024109,2]
[380025397,1755483046538,-230.0,0.00024142,2]
[380025399,1755483046548,-202.0,0.00024164,7]
[380025401,1755483046557,-528.58062739,0.000242,7]
[380025403,1755483046567,-160.0,0.000242,7]
[380025405,1755483046576,-215.75323784,0.000242,7]
[380025407,1755483046588,-375.82681177,0.000242,7]
[380025409,1755483046597,-417.15472785,0.000242,7]
[380025411,1755483046606,-232.18122251,0.000242,7]
[380025413,1755483046616,-843.81736472,0.000242,7]
[380025415,1755483046626,-216.85420361,0.000242,7]
[380025417,1755483046635,-160.0,0.000242,7]
[380025419,1755483046645,-160.0,0.000242,7]
[380025421,1755483046654,-375.12350551,0.00024223,2]
[380025423,1755483046663,-153.0,0.00024247,2]
[380025425,1755483046672,-159.4992174,0.00024247,2]
[380025427,1755483046682,-153.0,0.00024247,2]
[380025429,1755483046691,-153.0,0.00024247,2]
[380025431,1755483046701,-153.0,0.00024247,2]
[380025433,1755483046711,-314.4346216,0.00024247,2]
[380025435,1755483046720,-230.0,0.00024261,2]
[380025437,1755483046729,-860.0,0.00024275,2]
[380025439,1755483046738,-230.0,0.00024276,2]
[380025441,1755483046747,-480.0,0.00024281,2]
[380025443,1755483046757,-151.0,0.00024289,5]
[380025445,1755483046766,-230.0,0.00024365,2]
[380025447,1755483046777,-587.62,0.00024383,2]
[380025449,1755483046787,-151.0,0.000244,9]
[380025451,1755483046796,-151.0,0.000244,9]
[380025453,1755483046806,-151.0,0.000244,8]
[380025455,1755483046815,-333.61085426,0.00024424,2]
[380025457,1755483046826,-800.0,0.00024443,2]
[380025459,1755483046835,-800.0,0.00024459,2]
[380025461,1755483046844,-9957.54174486,0.00024472,2]
[380025463,1755483046854,-230.0,0.00024484,2]
[380025465,1755483046863,-230.0,0.00024518,2]
[380025467,1755483046873,-473.03531071,0.0002452,2]
[380025469,1755483046882,-155.32,0.0002453,7]
[380025471,1755483046891,-800.0,0.00024551,2]
[380025473,1755483046901,-800.0,0.00024552,2]
[380025475,1755483046911,-480.0,0.00024555,2]
[380025477,1755483046920,-800.0,0.00024574,2]
[380025479,1755483046929,-800.0,0.00024577,2]
[380025481,1755483046938,-242.47,0.00024577,2]
[380025483,1755483046947,-800.0,0.00024586,2]
[380025485,1755483046956,-800.0,0.00024589,2]
[380025487,1755483046965,-230.0,0.00024593,2]
[380025489,1755483046974,-823.0,0.00024604,2]
[380025491,1755483046984,-800.0,0.00024606,2]
[380025493,1755483046994,-155.32,0.0002463,7]
[380025495,1755483047004,-800.0,0.00024638,2]
[380025497,1755483047014,-800.0,0.00024656,2]
[380025499,1755483047023,-587.62,0.00024657,2]
[380025501,1755483047034,-295.9771179,0.00024658,2]
[380025503,1755483047043,-200.0,0.00024658,15]
[380025505,1755483047052,-151.72914932,0.00024658,2]
[380025507,1755483047061,-198.63598254,0.00024658,2]
[380025509,1755483047070,-151.92516463,0.00024658,2]
[380025511,1755483047079,-151.0,0.00024658,2]
[380025513,1755483047090,-151.0,0.00024658,2]
[380025515,1755483047100,-152.00550033,0.00024658,2]
[380025517,1755483047109,-151.81379661,0.00024658,2]
[380025519,1755483047119,-152.39216814,0.00024658,2]
[380025521,1755483047128,-500.0,0.00024658,2]
[380025523,1755483047138,-500.0,0.00024658,2]
[380025525,1755483047147,-151.54215487,0.00024658,2]
[380025527,1755483047156,-151.0,0.00024658,2]
[380025528,1755483047166,-500.0,0.00024658,2]
[380025530,1755483047178,-151.0,0.00024658,2]
[380025532,1755483047187,-151.0,0.00024658,2]
[380025534,1755483047196,-152.87499009,0.00024658,2]
[380025536,1755483047205,-594.0,0.00024658,2]
[380025538,1755483047215,-800.0,0.00024667,2]
[380025540,1755483047225,-24040.59112898,0.00024673,3]
[380025542,1755483047234,-151.0,0.00024673,7]
[380025544,1755483047244,-151.0,0.00024673,7]
[380025546,1755483047258,-151.0,0.00024673,7]
[380025548,1755483047267,-151.0,0.00024673,7]
[380025571,1755483047483,-248.010753,0.00024673,7]
[380025573,1755483047493,-151.0,0.00024673,7]
[380025575,1755483047503,-151.0,0.00024673,7]
[380025577,1755483047512,-152.044904,0.00024673,7]
[380025579,1755483047521,-151.0,0.00024673,7]
[380025581,1755483047532,-151.0,0.00024673,7]
[380025583,1755483047541,-800.0,0.00024686,2]
[380025585,1755483047550,-1646.45168016,0.0002469,2]
[380025587,1755483047559,-528.58062739,0.000247,3]
[380025589,1755483047568,-160.0,0.000247,3]
[380025591,1755483047577,-215.75323784,0.000247,3]
[380025593,1755483047586,-150.12655,0.000247,2]
[380025595,1755483047595,-375.82681177,0.000247,3]
[380025597,1755483047604,-1000.0,0.000247,2]
[380025599,1755483047613,-417.15472785,0.000247,3]
[380025601,1755483047622,-232.18122251,0.000247,3]
[380025605,1755483047631,-843.81736472,0.000247,3]
[380025607,1755483047666,-160.0,0.000247,3]
[380025609,1755483047676,-160.0,0.000247,3]
[380025611,1755483047685,-151.0,0.000247,7]
[380025613,1755483047694,-216.85420361,0.000247,3]
[380025615,1755483047703,-160.0,0.000247,3]
[380025617,1755483047712,-160.0,0.000247,3]
[380025619,1755483047722,-160.0,0.000247,3]
[380025621,1755483047731,-160.0,0.00024729,6]
[380025623,1755483047739,-218.47563043,0.00024729,5]
[380025625,1755483047748,-155.32,0.0002473,7]
[380025627,1755483047757,-501.04690717,0.00024773,2]
[380025629,1755483047766,-501.108861,0.00024773,2]
[380025631,1755483047775,-501.36665159,0.00024773,2]
[380025633,1755483047785,-158.64032728,0.00024773,2]
[380025634,1755483047794,-500.0,0.00024773,2]
[380025635,1755483047803,-500.81789606,0.00024773,2]
[380025636,1755483047812,-502.68530612,0.00024773,2]
[380025637,1755483047821,-500.0,0.00024773,2]
[380025638,1755483047830,-335.97865504,0.00024773,2]
[380025639,1755483047839,-1343.91462017,0.00024773,2]
[380025640,1755483047848,-3023.80789538,0.00024773,2]
[380025641,1755483047858,-5370.2828222,0.00024773,2]
[380025642,1755483047867,-910.73558428,0.00024773,2]
[380025643,1755483047876,-3639.29939479,0.00024773,2]
[380025644,1755483047885,-151.0,0.00024773,7]
[380025645,1755483047895,-256.01462,0.00024773,7]
[380025647,1755483047904,-256.01462,0.00024773,7]
[380025649,1755483047913,-151.0,0.00024773,7]
[380025650,1755483047923,-151.0,0.00024773,7]
[380025652,1755483047932,-632.2223584,0.00024773,2]
[380025654,1755483047941,-2526.36054418,0.00024773,2]
[380025656,1755483047950,-152.82209,0.00024773,7]
[380025658,1755483047960,-151.0,0.00024773,7]
[380025660,1755483047970,-151.0,0.00024773,7]
[380025662,1755483047979,-435.25306187,0.00024773,2]
[380025664,1755483047988,-299.63304,0.00024773,7]
[380025666,1755483047998,-151.0,0.00024773,7]
[380025668,1755483048008,-299.63304,0.00024773,7]
[380025670,1755483048018,-700.296739,0.00024773,7]
[380025673,1755483048031,-700.296739,0.00024773,7]
[380025676,1755483048065,-151.0,0.00024773,7]
[380025679,1755483048096,-277.991592,0.00024773,7]
[380025682,1755483048124,-277.991592,0.00024773,7]
[380025684,1755483048134,-152.47491,0.00024773,7]
[380025686,1755483048144,-151.0,0.00024773,7]
[380025688,1755483048153,-151.0,0.00024773,7]
[380025690,1755483048162,-151.0,0.00024773,7]
[380025692,1755483048172,-151.0,0.00024773,7]
[380025694,1755483048181,-151.0,0.00024773,7]
[380025696,1755483048191,-153.618042,0.00024773,7]
[380025698,1755483048200,-221.180972,0.00024773,7]
[380025700,1755483048209,-221.180972,0.00024773,7]
[380025702,1755483048218,-151.0,0.00024773,7]
[380025703,1755483048227,-151.0,0.00024773,7]
[380025705,1755483048236,-151.0,0.00024773,7]
[380025707,1755483048247,-151.0,0.00024773,7]
[380025709,1755483048258,-151.0,0.00024773,7]
[380025711,1755483048268,-1013.23298153,0.00024773,2]
[380025713,1755483048278,-160.10842382,0.00024789,2]
[380025715,1755483048288,-213.47376504,0.0002479,2]
[380025717,1755483048298,-152693.78698266,0.0002479,7]
[380025765,1755483048748,-279.99929966,0.0002479,7]
[380025780,1755483048886,-13966.19885873,0.00022467,2]
[380025783,1755483048897,-6212.12857382,0.00022467,2]
[380025785,1755483048907,-1002.216881,0.000247,2]
[380025787,1755483048917,-4417.65454518,0.0002479,7]
[380025789,1755483048929,-5807.49999999,0.0002479,7]
[380027187,1755483063364,15312.95640119,0.0002,60]
[380028707,1755483130460,178.04,0.00028767,120]
[380028709,1755483163536,5976.46,0.00018371,2]
[380028710,1755483269472,-662.74908384,0.0001907,2]
[380028711,1755483269495,-480.0,0.00019178,2]
[380028712,1755483269517,-480.0,0.00019178,2]
[380028713,1755483269540,-480.0,0.00019178,2]
[380028714,1755483269564,-300.0,0.00019451,2]
[380028715,1755483269589,-480.0,0.00019452,2]
[380028716,1755483269612,-480.0,0.00019452,2]
[380028717,1755483269637,-480.0,0.00019452,2]
[380028718,1755483269662,-480.0,0.00019726,2]
[380028719,1755483269684,-480.0,0.00019726,2]
[380028720,1755483269706,-480.0,0.00019726,2]
[380028721,1755483269729,-246.784945,0.00019863,2]
[380028722,1755483269751,-480.0,0.00019897,2]
[380028723,1755483269773,-486.75130162,0.00019897,2]
[380028724,1755483269796,-480.0,0.00019898,2]
[380028725,1755483269817,-386.23143521,0.00019899,2]
[380028726,1755483269839,-480.0,0.00019899,2]
[380028727,1755483269863,-480.0,0.00019899,2]
[380028728,1755483269884,-623.08242795,0.00019899,2]
[380028729,1755483269905,-502.21047077,0.00019899,2]
[380028730,1755483269928,-497.32,0.00019899,2]
[380028731,1755483269951,-7649.21623041,0.000199,2]
[380028732,1755483269974,-480.0,0.0002,2]
[380028733,1755483269997,-480.0,0.0002,2]
[380028734,1755483270019,-480.0,0.0002,2]
[380028735,1755483273074,480.0,0.00019899,2]
[380028736,1755483296864,480.0,0.00019899,2]
[380028737,1755483319275,5.6541052,0.00019178,2]
[380028741,1755483556647,159.907059,0.00013699,2]
[380028744,1755483955146,1155.65,0.00018371,2]
[380028745,1755483981697,504.021,0.00016035,2]
[380028746,1755483983636,2000.0,0.00016035,2]
[380028747,1755483985462,2000.0,0.00016035,2]
[380028748,1755483986264,2000.0,0.00016035,2]
[380028749,1755483987049,2000.0,0.00016035,2]
[380028750,1755483987853,2000.0,0.00016035,2]
[380028751,1755483988610,2000.0,0.00016035,2]
[380028752,1755483989680,2000.0,0.00016035,2]
[380028753,1755483990438,2000.0,0.00016035,2]
[380028754,1755483991206,2000.0,0.00016035,2]
[380028755,1755483992011,2000.0,0.00016035,2]
[380028756,1755483992761,2000.0,0.00016035,2]
[380028757,1755483993510,2000.0,0.00016035,2]
[380028758,1755483994268,2000.0,0.00016035,2]
[380028759,1755483995041,2000.0,0.00016035,2]
[380028760,1755483995918,2000.0,0.00016035,2]
[380028761,1755483996592,2000.0,0.00016035,2]
[380028762,1755483997620,2000.0,0.00016035,2]
[380028763,1755483998449,2000.0,0.00016035,2]
[380028764,1755483999218,2000.0,0.00016035,2]
[380028765,1755483999979,2000.0,0.00016035,2]
[380028766,1755484010776,2000.0,0.00016035,2]
[380028767,1755484011683,2000.0,0.00016035,2]
[380028768,1755484013434,2000.0,0.00016035,2]
[380028769,1755484014763,2000.0,0.00016035,2]
[380028770,1755484015524,2000.0,0.00016035,2]
[380028771,1755484016303,2000.0,0.00016035,2]
[380028772,1755484017089,2000.0,0.00016035,2]
[380028773,1755484017859,2000.0,0.00016035,2]
[380028774,1755484018942,2000.0,0.00016035,2]
[380028775,1755484019695,2000.0,0.00016035,2]
[380028776,1755484020443,2000.0,0.00016035,2]
[380028777,1755484021227,2000.0,0.00016035,2]
[380028778,1755484021996,331.775,0.00016035,2]
[380028780,1755484084138,2000.0,0.00016035,2]
[380028783,1755484104794,152.83555978,0.00027152,120]
[380028789,1755484125417,170.58513808,0.00027152,120]
[380028790,1755484141482,218.3162032,0.00027152,120]
[380028819,1755484232001,-925.8,0.000189,2]
[380028820,1755484232012,-1639.84977587,0.000189,2]
[380028821,1755484232021,-302.69733596,0.000189,2]
[380028822,1755484232029,-300.0,0.00018999,2]
[380028823,1755484232038,-413.0,0.00018999,2]
[380028824,1755484232047,-500.0,0.00019,20]
[380028825,1755484232056,-500.0,0.00019,20]
[380028826,1755484232065,-500.0,0.00019,20]
[380028827,1755484232076,-187.87,0.00019,20]
[380028828,1755484232086,-500.0,0.00019,20]
[380028829,1755484232094,-203.0,0.00019,2]
[380028830,1755484232103,-302.69733596,0.00019089,2]
[380028831,1755484232112,-500.0,0.00019178,20]
[380028832,1755484232122,-445.49496659,0.00019178,2]
[380028833,1755484232131,-616.72,0.00019178,2]
[380028834,1755484232139,-302.69733596,0.00019278,2]
[380028835,1755484232148,-616.72,0.00019452,2]
[380028836,1755484232157,-302.69733596,0.00019467,2]
[380028837,1755484232166,-302.39503162,0.00019656,2]
[380028838,1755484232175,-480.0,0.00019725,2]
[380028839,1755484232183,-616.72,0.00019726,2]
[380028840,1755484232192,-197.427956,0.00019863,2]
[380028841,1755484232201,-480.28473563,0.00019897,2]
[380028842,1755484232210,-485.45389888,0.00019897,2]
[380028843,1755484232219,-483.76147164,0.00019897,2]
[380028844,1755484232233,-500.0,0.00019897,2]
[380028846,1755484232247,-484.45551962,0.00019897,2]
[380028847,1755484232264,-480.0,0.00019897,2]
[380028848,1755484232275,-480.0,0.00019899,2]
[380028849,1755484232291,-7709.71274345,0.000199,2]
[380028850,1755484232308,-1239.98342372,0.000199,2]
[380028851,1755484232318,-35895.37894725,0.00019998,2]
[380028852,1755484232332,-1127.31678231,0.00019998,2]
[380028905,1755484237984,-5769.92459904,0.00019998,2]
[380028906,1755484238038,-21364.34054051,0.00019998,2]
[380028907,1755484238050,-2530.87178941,0.00019998,2]
[380028908,1755484238059,-160.0,0.0002,3]
[380028909,1755484238069,-616.72,0.0002,2]
[380028910,1755484238079,-2495.81097895,0.0002,2]
[380028918,1755484239801,-369.99999996,0.0002,2]
[380028951,1755484244466,-513.94,0.00019178,2]
[380028952,1755484244476,-500.0,0.00019997,2]
[380028953,1755484244486,-503.81093719,0.00019997,2]
[380028954,1755484244495,-178.33377745,0.00019997,2]
[380028955,1755484244504,-219.94528536,0.00019997,2]
[380028956,1755484244516,-280.05471464,0.00019997,2]
[380028957,1755484244525,-309.46885521,0.00019997,2]
[380028958,1755484244536,-190.53114479,0.00019997,2]
[380028959,1755484244546,-500.0,0.00019997,2]
[380028960,1755484244559,-500.0,0.00019997,2]
[380028961,1755484244568,-385.78689178,0.00019997,2]
[380028962,1755484244577,-308.84088982,0.00019997,2]
[380028963,1755484244588,-178.21520337,0.0002,2]
[380028964,1755484244600,-553.07310776,0.0002,2]
[380028965,1755484244616,-2749.44819978,0.0002,2]
[380028974,1755484245856,-513.94,0.00019452,2]
[380028975,1755484245865,-513.94,0.00019726,2]
[380028976,1755484245874,-2417.11081136,0.0002,2]
[380028977,1755484245885,-18473.556327,0.0002,2]
[380028989,1755484470129,160.803378,0.00013699,2]
[380029054,1755484866240,1600.0,0.00018371,2]
[380029081,1755484999280,1000.0,0.00028,120]
[380029176,1755485219109,-446.15369234,0.00018799,2]
[380029269,1755485406196,-199.74033756,0.00018799,2]
[380029271,1755485406734,-199.74033756,0.00018799,2]
[380029273,1755485406772,-199.74033756,0.00018799,2]
[380029275,1755485406811,-181.10380865,0.00018799,2]
[380029308,1755485432134,-66.67517867,0.00018799,2]
[380029309,1755485432143,-300.0,0.00018799,2]
[380029310,1755485432152,-1085.0,0.00018799,2]
[380029311,1755485432161,-97.20927494,0.000188,2]
[380029312,1755485432187,-5452.68082296,0.000188,2]
[380029315,1755485437960,-13091.31788708,0.000188,2]
[380029316,1755485438014,-1446.16,0.000188,2]
[380029622,1755485443574,-895.63754725,0.000188,2]
[380029626,1755485446103,-383.00226309,0.000188,2]
[380029627,1755485446113,-1423.96469443,0.000189,2]
[380029628,1755485446123,-302.69733595,0.000189,2]
[380029629,1755485446132,-383.35,0.00019178,2]
[380029631,1755485446142,-507.72209325,0.00019178,2]
[380029633,1755485446151,-480.0,0.00019178,2]
[380029634,1755485446161,-480.0,0.00019178,2]
[380029635,1755485446170,-270.31448724,0.00019178,2]
[380029636,1755485446180,-491.27537824,0.00019178,2]
[380029637,1755485446189,-480.0,0.00019178,2]
[380029638,1755485446200,-511.82344749,0.00019178,2]
[380029639,1755485446210,-480.0,0.00019178,2]
[380029640,1755485446220,-699.38,0.00019178,2]
[380029641,1755485446229,-8546.06647728,0.00019178,2]
[380029642,1755485446239,-1504.64174817,0.00019352,2]
[380029643,1755485446249,-413.26207487,0.00019452,2]
[380029669,1755485481443,161.047376,0.00013699,2]
[380029718,1755485700771,1873.0,0.000287,120]
[380029803,1755486032831,156.45166358,0.000287,120]
[380029908,1755486382757,949.0,0.00028767,120]
[380029960,1755486596208,159.0,0.00027153,120]
[380030009,1755486632355,-2000.0,0.000186,2]
[380030011,1755486632365,-2211.00690936,0.000188,2]
[380030074,1755486638380,-74.47309064,0.000188,2]
[380030076,1755486638390,-151.0,0.00019,2]
[380030078,1755486638399,-147.26607956,0.00019178,2]
[380030082,1755486638434,-333.88935151,0.00019178,2]
[380030084,1755486638443,-484.7084002,0.00019178,2]
[380030086,1755486638452,-482.28686095,0.00019178,2]
[380030089,1755486638462,-483.19057629,0.00019178,2]
[380030091,1755486638472,-484.3927932,0.00019178,2]
[380030093,1755486638482,-480.0,0.00019178,2]
[380030095,1755486638491,-480.0,0.00019178,2]
[380030097,1755486638500,-480.0,0.00019178,2]
[380030099,1755486638510,-767.99,0.00019178,2]
[380030101,1755486638520,-493.39591532,0.00019178,2]
[380030103,1755486638530,-503.74403087,0.00019178,2]
[380030105,1755486638539,-480.0,0.00019178,2]
[380030107,1755486638548,-480.0,0.00019452,2]
[380030109,1755486638558,-480.0,0.00019452,2]
[380030111,1755486638567,-767.99,0.00019452,2]
[380030113,1755486638577,-300.32482133,0.00019452,2]
[380030115,1755486638586,-151.0,0.000196,2]
[380030117,1755486638595,-591.24478588,0.00019726,2]
[380030119,1755486638604,-474.3458948,0.00019726,2]
[380030121,1755486638614,-767.99,0.00019726,2]
[380030123,1755486638623,-460.48778945,0.00019799,2]
[380030125,1755486638632,-503.43527177,0.00019799,2]
[380030127,1755486638641,-265.08669457,0.00019799,2]
[380030129,1755486638651,-1000.0,0.000198,2]
[380030131,1755486638661,-2000.0,0.000198,3]
[380030133,1755486638670,-1000.0,0.000198,4]
[380030135,1755486638680,-1316.56152964,0.000198,2]
[380030137,1755486638689,-210.754337,0.00019863,2]
[380030139,1755486638698,-480.0,0.00019898,2]
[380030141,1755486638707,-480.0,0.00019898,2]
[380030143,1755486638716,-480.0,0.00019898,2]
[380030145,1755486638726,-670.24,0.00019898,2]
[380030147,1755486638736,-5000.0,0.00019899,2]
[380030149,1755486638745,-500.0,0.00019899,2]
[380030151,1755486638754,-211.00494772,0.00019899,2]
[380030153,1755486638763,-480.0,0.00019899,2]
[380030154,1755486638772,-213.47376504,0.000199,2]
[380030157,1755486638781,-10543.13193668,0.000199,2]
[380030158,1755486638790,-30497.8592867,0.000199,2]
[380030160,1755486638799,-2309.14808312,0.000199,2]
[380030162,1755486638808,-5000.0,0.000199,2]
[380030164,1755486638817,-462.64,0.0001999,3]
[380030166,1755486638827,-561.79,0.0001999,3]
[380030168,1755486638836,-280.89,0.0001999,3]
[380030170,1755486638845,-842.7,0.0001999,3]
[380030172,1755486638854,-502.58818789,0.00019997,2]